Cogmind - Beta 13 @@@ ROGUE MODE // 2024.06.27 @ 11:30:58 Player: JackZewap Result: Destroyed by VF-Z42(R) with Subdweller Laser Performance ------------- Evolutions (0) 0 Regions Visited (2) 400 Robots Destroyed (9) 45 Value Destroyed (316) 316 Prototype IDs (0) 0 Alien Tech Used (0) 0 Bonus (0) 0 TOTAL SCORE: 761 Bonus ------- None Cogmind --------- Core Integrity 0/250 Matter 230/300 Energy 85/100 System Corruption 0% Temperature Cool (6) Movement Walking (140) Location -10/Subcaves Parts ------- > --- POWER (1) -------- (None) > --- PROPULSION (2) --- Makeshift Leg Subdweller Monowheel > --- UTILITY (2) ------ Disposable Heat Sink > --- WEAPON (2) ------- Ripper Makeshift Spear > --- INVENTORY (5) ---- Large Matter Pod (150) Grenade Launcher Flamer Makeshift Axe Peak State ------------ > --- POWER ------------ Subdweller Power Source > --- PROPULSION ------- Subdweller Monowheel Subdweller Monowheel > --- UTILITY ---------- Scrap Shield > --- WEAPON ----------- Battle Cannon Ripper > --- INVENTORY -------- Disposable Heat Sink Large Matter Pod Grenade Launcher Flamer Makeshift Axe [Rating: 17] Favorites ----------- Power Light Ion Engine Engine Light Ion Engine Propulsion Aluminum Leg Leg Aluminum Leg Wheel Subdweller Monowheel Utility Small Storage Unit Device Structural Scanner Storage Small Storage Unit Protection Scrap Shield Weapon Small Laser Energy Gun Small Laser Ballistic Gun Barrage Gun Ballistic Cannon Battle Cannon Launcher Grenade Launcher Slashing Weapon Ripper Piercing Weapon Makeshift Spear Build | -11 -10 -10 ------- Run | Yrd Mat Sub Slots Evolved . | . . . Power . | . . . Propulsion . | . . . Utility . | . . . Weapon . | . . . Parts Attached 38 | 6 9 23 Power 6 | 1 1 4 Engine 6 | 1 1 4 Core . | . . . Reactor . | . . . Propulsion 10 | 2 1 7 Treads . | . . . Leg 5 | 2 1 2 Wheel 5 | . . 5 Hover . | . . . Flight . | . . . Utility 7 | 1 3 3 Device 4 | . 2 2 Storage 1 | 1 . . Processor . | . . . Hackware . | . . . Protection 2 | . 1 1 Artifact . | . . . Weapon 15 | 2 4 9 Energy Gun 7 | 2 3 2 Energy Cannon . | . . . Ballistic Gun 2 | . . 2 Ballistic Cannon 2 | . . 2 Launcher 2 | . 1 1 Special Weapon . | . . . Impact Weapon . | . . . Slashing Weapon 1 | . . 1 Piercing Weapon 1 | . . 1 Special Melee Weapon . | . . . Unidentified Prototypes . | . . . Parts Lost 12 | . 2 10 Power 4 | . . 4 Propulsion 4 | . 1 3 Utility 2 | . . 2 Weapon 2 | . 1 1 Highest Loss Streak 5 | . 2 5 To Critical Strikes . | . . . Average Slot Usage (%) 87 | . 98 82 Engine 10 | . 14 9 Leg 14 | . 27 9 Wheel 12 | . . 17 Device 5 | . 9 4 Storage 7 | . 14 4 Protection 7 | . 3 9 Energy Gun 11 | . 27 4 Ballistic Gun 12 | . . 17 Ballistic Cannon 2 | . . 3 Slashing Weapon 1 | . . 1 Naked Turns . | . . . Heaviest Build 30 | 10 13 30 Greatest Support 40 | 20 20 40 Greatest Overweight (x) 2 | . 1 2 Average Overweight (x) . | . . . Largest Inventory Capacity 8 | 8 8 8 Average Capacity 6 | 7 8 5 Most Carried 8 | 1 8 8 Average Carried 5 | . 5 5 Final Capacity 8 | 8 8 5 Final Carried 8 | 1 8 4 Class Distribution -------------------- 53% | Mutant 46% | Subdweller-Mutant Dominant Class ---------------- Mutant | -10/Materials Subdweller-Mutant | -10/Subcaves Resources | -11 -10 -10 ----------- Run | Yrd Mat Sub Matter Collected 831 | 231 141 459 Remotely . | . . . Salvage Created 338 | . 162 176 Parts 12 | . 5 7 Haulers Intercepted . | . . . Recyclers Shooed . | . . . Parts Field Recycled . | . . . Retrieved Matter . | . . . Parts Self-Destructed . | . . . Prevented . | . . . Kills | -11 -10 -10 ------- Run | Yrd Mat Sub Combat Hostiles Destroyed 8 | . 3 5 Guns 5 | . 3 2 Cannons 1 | . . 1 AOE 2 | . . 2 Classes Destroyed 3 | . 2 1 Worker 1 | . 1 . Grunt 3 | . 3 . Subdweller 5 | . . 5 Best Kill Streak 3 | . 3 2 Combat Bots Only 3 | . 3 2 Max Kills in Single Turn 1 | . 1 1 Gunslinging . | . . . Exploded 1 | . . 1 Melee . | . . . Uniques/NPCs Destroyed . | . . . Combat | -11 -10 -10 -------- Run | Yrd Mat Sub Hostile Shots Fired 89 | . 29 60 Missed 19 | . 8 11 Damage Taken 1460 | . 395 1065 Core 252 | . 56 196 Absorbed by Shields . | . . . Core Remaining (%) 100 | 100 . . Volleys Fired 51 | . 17 34 Largest 2 | . 2 2 Hottest 80 | . 80 70 Shots Fired 87 | . 33 54 Gun 63 | . 32 31 Cannon 17 | . . 17 Launcher 7 | . 1 6 Special . | . . . Kinetic 39 | . . 39 Thermal 41 | . 32 9 Explosive 7 | . 1 6 Electromagnetic . | . . . Robot Hit Streak 16 | . 9 16 Robot Miss Streak 2 | . 2 1 Penetration Max . | . . . Secondary Targets 1 | . 1 . Max Gunslinging Chain 1 | . 1 . Shots Hit Robots 58 | . 22 36 Core Hits 21 | . 9 12 Critical Kills . | . . . Critical Parts Destroyed . | . . . Critical Strikes . | . . . Melee Attacks 4 | . . 4 Impact . | . . . Slashing 3 | . . 3 Piercing 1 | . . 1 Sneak Attacks . | . . . Combat Hostiles . | . . . Follow-up Attacks . | . . . Damage Inflicted 1064 | . 264 800 Guns 451 | . 242 209 Cannons 208 | . . 208 Explosions 337 | . 22 315 Melee 68 | . . 68 Ramming . | . . . Kinetic 338 | . . 338 Thermal 321 | . 242 79 Explosive 337 | . 22 315 Electromagnetic . | . . . Impact . | . . . Slashing 31 | . . 31 Piercing 37 | . . 37 Highest Corruption . | . . . Average Corruption . | . . . Corruption Purged . | . . . Corruption Blocked . | . . . Overload Shots . | . . . Overflow Damage . | . . . Projectiles . | . . . Explosions . | . . . Melee . | . . . Knockbacks 2 | . . 2 Impact . | . . . Kinetic 2 | . . 2 Secondary . | . . . Self-Inflicted Damage 35 | . . 35 Shots 1 | . . 1 Rammed . | . . . Targets Rammed . | . . . Kicked . | . . . Crushed . | . . . Highest Temperature 226 | . 226 2 Average Temperature 100 | . 103 2 Received Heat Transfer 291 | . 165 126 Siege Activations . | . . . Robots Corrupted . | . . . Combat Hostiles . | . . . Parts Fried . | . . . Impact Corruptions . | . . . Robots Melted . | . . . Combat Hostiles . | . . . Parts Melted . | . . . Heat Transferred 725 | . 550 175 Parts Sabotaged . | . . . Parts Stolen . | . . . Parts Stripped . | . . . Power Chain Reactions . | . . . Alert | -11 -10 -10 ------- Run | Yrd Mat Sub Peak Influence 146 | . 146 . Initial . | . . . Average 61 | . 73 . Maximum Alert Level . | . . . Low Security (%) 100 | 100 100 . Level 1 . | . . . Level 2 . | . . . Level 3 . | . . . Level 4 . | . . . Level 5 . | . . . High Security . | . . . Max Security . | . . . Squads Dispatched 1 | . 1 . Investigation 1 | . 1 . Extermination . | . . . Reinforcement . | . . . Assault . | . . . Garrison . | . . . Intercept . | . . . Searches Triggered . | . . . Construction Impeded . | . . . Haulers Reinforced . | . . . Active Scanning Responses . | . . . Cargo Convoy Interrupts . | . . . Stealth | -11 -10 -10 --------- Run | Yrd Mat Sub Distress Signals 1 | . 1 . Communications Jammed . | . . . Distress Signals . | . . . Times Spotted 17 | . 9 8 Peak Tracking Total 4 | . 4 3 Tactical Retreats . | . . . Traps | -11 -10 -10 ------- Run | Yrd Mat Sub Traps Triggered 1 | . 1 . Indirectly . | . . . Trap Hack Attempts . | . . . Triggered . | . . . Disarmed . | . . . Reprogrammed . | . . . Reused . | . . . Traps Extracted . | . . . Installed . | . . . Triggered . | . . . Machines | -11 -10 -10 ---------- Run | Yrd Mat Sub Machines Disabled . | . . . Max in Single Turn . | . . . Machines Repaired . | . . . Machines Dismantled . | . . . Machines Sabotaged . | . . . Overloaded Fab Kills . | . . . Hacking | -11 -10 -10 --------- Run | Yrd Mat Sub Machines Accessed 5 | . 4 1 Terminals 3 | . 3 . Fabricators . | . . . Repair Stations . | . . . Recycling Units 1 | . 1 . Scanalyzers . | . . . Garrison Access . | . . . Total Hacks 11 | . 10 1 Successful 7 | . 6 1 Failed 4 | . 4 . Catastrophic . | . . . Database Lockouts . | . . . Manual 9 | . 6 3 Terminals 8 | . 8 . Fabricators . | . . . Repair Stations . | . . . Recycling Units 2 | . 2 . Scanalyzers . | . . . Garrison Access . | . . . Terminal Hacks 3 | . 2 1 Record 1 | . . 1 Alert Level 1 | . 1 . Hauler Manifests 1 | . 1 . Fabricator Hacks . | . . . Repair Station Hacks . | . . . Recycling Unit Hacks 1 | . 1 . Retrieve Components 1 | . 1 . Scanalyzer . | . . . Garrison Access Hacks . | . . . Unauthorized Hacks 3 | . 3 . Terminals 2 | . 2 . Botnet 2 | . 2 . Fabricators . | . . . Repair Stations . | . . . Recycling Units 1 | . 1 . Reject 1 | . 1 . Scanalyzers . | . . . Garrison Access . | . . . Data Cores Recovered . | . . . Used . | . . . Hacking Detections 3 | . 3 . Full Trace Events 1 | . 1 . Feedback Events . | . . . Feedback Blocked . | . . . Robot Schematics Acquired . | . . . Robots Built . | . . . Authchips . | . . . Time . | . . . Total Robot Build Rating . | . . . Part Schematics Acquired . | . . . Parts Built . | . . . Authchips . | . . . Time . | . . . Total Part Build Rating . | . . . Parts Repaired . | . . . Time . | . . . Parts Recycled . | . . . Recycled Matter . | . . . Retrieved Matter . | . . . Retrieved Components 3 | . 3 . Parts Scanalyzed . | . . . Part Schematics Acquired . | . . . Parts Damaged . | . . . Bothacking | -11 -10 -10 ------------ Run | Yrd Mat Sub Used RIF Installer . | . . . Robots Hacked . | . . . Non-combat . | . . . Combat . | . . . Robot Hacks Applied . | . . . Relay Couplers Released . | . . . Fabnet Peak Effective % . | . . . Robots Rewired . | . . . Allies Hacked . | . . . Hacks Repelled . | . . . Allies | -11 -10 -10 -------- Run | Yrd Mat Sub Total Allies . | . . . Largest Group . | . . . Highest-Rated Group . | . . . Highest-Rated Ally . | . . . Total Orders . | . . . Ally Attacks . | . . . Total Damage . | . . . Kills . | . . . Allies Corrupted . | . . . Allies Melted . | . . . Intel | -11 -10 -10 ------- Run | Yrd Mat Sub Robot Analysis Total . | . . . Derelict Logs Recovered 2 | . . 2 Drone Launches . | . . . Drone Recoveries . | . . . Exploration | -11 -10 -10 ------------- Run | Yrd Mat Sub Turns Passed 1247 | 68 346 833 Spaces Moved 877 | 51 227 599 Core 3 | 3 . . Treads . | . . . Legs 445 | 48 227 170 Wheels 429 | . . 429 Hover . | . . . Flight . | . . . Fastest Speed 50 | 50 120 110 Average Speed 115 | 115 120 114 Slowest Speed 260 | 120 190 260 Overloaded Moves . | . . . Propulsion Burnouts . | . . . Robots Hopped . | . . . Cave-ins Triggered . | . . . Exploration Rate (%) 23 | 4 31 36 Regions Visited 2 Branch Regions 1 Pre-discovered Areas . | . . . Known Exits Taken . | . . . Unknown Exits Taken 2 | 1 1 . Scrap Searched 8 | . . 8 Spaces Dug 6 | . 6 . Terrain Destroyed 36 | . 6 30 Melee . | . . . Projectile . | . . . AOE 36 | . 6 30 Terrain Rammed . | . . . Walls Destroyed . | . . . Machines Disabled . | . . . Actions | -11 -10 -10 --------- Run | Yrd Mat Sub Total 1015 | 57 265 693 Wait 8 | . 4 4 Move 875 | 50 226 599 Hop . | . . . Pick Up 17 | 1 7 9 Fast Attach 20 | 6 2 12 Attach 8 | . 1 7 Detach 2 | . . 2 Swap 10 | . 6 4 Drop 18 | . 2 16 Fire 51 | . 17 34 Melee 4 | . . 4 Ram . | . . . Kick . | . . . Crush . | . . . Escape Stasis . | . . . Rewire . | . . . Trap . | . . . Miscellaneous 2 | . . 2 Route ------- -11/Scrapyard -10/Materials -10/Subcaves History --------- Turn | Location | Event 20 | -11/Scrapyard | Discovered new exit (range 15) 69 | -11/Scrapyard | Entered Materials 127 | -10/Materials | Discovered new exit (range 16) 303 | -10/Materials | Build established: Mutant 415 | -10/Materials | Entered Subcaves 534 | -10/Subcaves | Disturbed a concealed Subdweller 549 | -10/Subcaves | Learned Materials garrison access intel 676 | -10/Subcaves | Core integrity fell below 50% 710 | -10/Subcaves | Lost 5 parts (2p2n1w) 726 | -10/Subcaves | Visited Clippyterm 978 | -10/Subcaves | Build established: Subdweller-Mutant 999 | -10/Subcaves | A swath of the cavern ceiling suddenly collapsed 1035 | -10/Subcaves | Learned 4 Materials zone layouts 1206 | -10/Subcaves | Disturbed a concealed Subdweller 1218 | -10/Subcaves | Disturbed a concealed Subdweller 1247 | -10/Subcaves | Core integrity fell below 20% 1248 | -10/Subcaves | Destroyed by VF-Z42(R) with Subdweller Laser Last Messages --------------- 01151_ Acquired Mak. Axe. 01153_ Acquired Sub. Power Source. 01193_ QS-E18(z): "She is not going to be happy we haven't found any suitable candidates yet." 01205_ Searching scrap... 01205_ Found Mak. Leg. 01205_ Found Mak. Spear. 01205_ Found 27 Matter. 01206_ VF-Z42(R) angrily emerges from the Twisted Machinery. 01206_ Acquired 27 matter. 01218_ PE-5CQ(R) angrily emerges from the Twisted Machinery. 01221_ LA-O5W(O) collects matter. 01228_ LA-O5W(O) puts together Flamer. 01232_ PE-5CQ(R) affixes Scrap Shield Fragment to Scrap Shield. 01233_ Dropped Battle Cannon. 01233_ Scrap Shield destroyed. 01234_ Acquired Mak. Spear. 01241_ Sub. Monowheel destroyed. 01242_ Sub. Power Source destroyed. 01247_ Acquired Mak. Leg. Map ----- +----------------------------------------------------+ | ## # # % ### ####### ####### ####???? | | ## ### =## ###### ## ## ###???? | | ## ### ## ## ##### ##???? | | ## ####### ## # # # ## ####?? | | ## ###### ## # ### #### ##?? | | # #### # #### ###### ##?? | | ### ##### ##?? | | & ## #### ##??? | | #### ## ###### #??? | | ??## # ###% ##??# ##??? | | ??# ### "### ####### ##??# #??? | | #?# #### """### ##### ##??# ##??? | | ### ####""" ## " ##??? #??## #??? | | ## ##"" " " ##??# ##??# ##??? | | ##" "## ## "" "! ##??## ##??# ##?? | | " ######## """" " ###??## ##??### #?? | | [ #?????## "" " # ###?# ###???## #?? | | ##????##"###" #?######### #?? | | #" ##???### #### #?### ##?? | | ## ##????" " "###### # #### % #??? | | # ##????# """"##### ##### ## ### #??? | | "## #?#### % ##### ##### #?# #% #??? | | ## ### #"" % ""# # ##??### #### #??? | | ### """ "" ##?#### ## # # ##??? | | ## "" ##" "O|### # ;##"# #???? | | ?# # # ## ####""###@ ##""##""####??? | | ?## "" # "## #"#"##< R # # #####"#""" #??? | | ??# """""""""""" " ""#< R## #?#####""""#"""###??? | | ??# """"# #"#"# "#""# $$"# ##???###"#######????? | | ??##""""####### #### #$<$"# #??# %#"" ###?????? | | ???######?????# ##<<## #??# ### #???????? | | ??????????????# #### #?# ## ??????? | | ??????????????## % # ### #? ?????? | | ???????????????####### ####?## ####? ????? | | ?????????????????????# #?????###????? ##???? | | ?????????????????????## ##?????????????? ##????? | | ??????????????????????# #?????????????? #?????? | | ??????????????????????# ##?????????????? ?????? | | ??????????????????????#% #???????????????? ?????? | | ?????????????????????? ????????????????###????? | | ?????????????????????? ??????????????????????? | | ?????????????????????#### ??????????????????????? | | ?????????????????????????# ?????????????????????? | | ??????????????????????????# ?????????????????????? | | ??????????????????????????? ????????????????????? | | ???????????????????????????? ????????????????????? | | ?????????????????????????????????????????????????? | | ?????????????????????????????????????????????????? | | ?????????????????????????????????????????????????? | | ?????????????????????????????????????????????????? | +----------------------------------------------------+ Best States ------------- Heat Dissipation 25 Coolant Potential 50 Energy Generation 15 Energy Capacity 250 Matter Stores 300 Matter Capacity 300 Sight Range 16 Terrain Scan Density 10 Armor Coverage 800 Utility Shielding 33 Evasion (%) 55 Item Schematics ----------------- None Robot Schematics ------------------ None Fabricated ------------ Nothing Alien Tech Used ----------------- None Achievements -------------- None Challenges ------------ None Game ------ Seed MiniHeavyStabilizer Manual? 0 Play Time 00:11:48 Cumulative 97.6 hours Start 2024.06.27 @ 11:13:51 End 2024.06.27 @ 11:30:58 Sessions 1 Manual Loads 0 Difficulty Rogue Special Mode None Game No. 113 Rogue 107 Adventurer 6 Explorer 0 Win Type - Total 1 Types 1/0/0/0/0/0/0/0/0 Lore% 37 Gallery% 56 Achievement% 41 Wizard Run 0 Options --------- Layout 0 ASCII 0 Keyboard 1 Movement Numpad Keybinds 0 Fullscreen 0 Font 14/Smallcaps Map View 76x50 Zoom Use 0% Tactical HUD 1 Map Filters NONE Filters NONE Steam 1 RUN: 0d34b929-17d0-4ff6-9259-88b9468eabca